{"text_format":"1","workbook":"xlsx","n_sheets":2,"sheets":["Feuil1","Référentiel"],"not_rendered":{"charts":0,"images":6,"macros":1,"external_links":0,"defined_names":108,"comments":0,"pivot_tables":0},"unopened":[],"bounds":{"document_bytes":16777216,"sheet_cells":100000,"rows_first":2000,"rows_last":500,"rows_between":2000,"halvings":0,"cell_chars":16384,"cell_head_chars":4096},"cells_cut":0,"cells_raw":0,"read":"whole","date_system":"1900"}

{"sheet":"Feuil1","index":0,"n_rows":38,"n_cols":25,"rows_kept":38,"cut":false,"hidden":false,"merged":[]}
[null,null,"Fiche évaluation DNB",null,null,null,"APSA:","Acrosport"]
[null,null,"Classe/Groupe",null,null,null,"Professeur:",null,null,null,null,null,null,null,null,null,null,null,null,null,null,null,null,null,"C:\\Users\\GERARD HOLDER EPS\\Documents\\fiches compatibles pack EPS\\Nouveau dossier\\macros2"]
[null,null,null,null,null,null,null,null,null,null,null,null,null,null,null,null,null,null,null,null,null,null,null,null,"C:\\Users\\GERARD HOLDER EPS\\Documents\\fiches compatibles pack EPS\\Nouveau dossier\\macros2\\Fiche évaluation DNB Acrosport  .pdf"]
[]
[null,"Nom- Prénom","Sexe","Classe","Note","Cotation","Qualité de l'enchainement (projet collectif)","Note de projet collectif /8 point","Qualité de l'interprétation (projet individuel) /8 points","Efficacité dans le rôle de juge /4 points",null,null,"A",1,null,"Juxtaposition de figures",null,null,"Le gymnaste occupe une posture",null,null,null,"Le jugement est partiel"]
[1,null,null,null,{"$f":"IF(H6=\"\",\"\",H6+I6+J6)","v":""},null,null,{"$f":"IF(F6=\"\",\"\",G6*L6)","v":""},null,null,null,{"$f":"IF(F6=\"A\",1,IF(F6=\"B\",0.9,IF(F6=\"C\",0.8,IF(F6=\"D\",0.7,\"\"))))","v":""},"B",0.9,null,0,null,null,0,null,null,null,0]
[2,null,null,null,{"$f":"IF(H7=\"\",\"\",H7+I6+J7)","v":""},null,null,{"$f":"IF(F7=\"\",\"\",G7*L7)","v":""},null,null,null,{"$f":"IF(F7=\"A\",1,IF(F7=\"B\",0.9,IF(F7=\"C\",0.8,IF(F7=\"D\",0.7,\"\"))))","v":""},"C",0.8,null,0.5,null,null,0.5,null,null,null,0.5]
[3,null,null,null,{"$f":"IF(H8=\"\",\"\",H8+I8+J8)","v":""},null,null,"",null,null,null,"","D",0.7,null,1,null,null,1,null,null,null,1]
[4,null,null,null,"",null,null,"",null,null,null,"",null,null,null,1.5,null,null,1.5,null,null,null,1.5]
[5,null,null,null,"",null,null,"",null,null,null,"",null,null,null,2,null,null,2,null,null,null,"Le jugement est argumenté"]
[6,null,null,null,"",null,null,"",null,null,null,"",null,null,null,2.5,null,null,2.5,null,null,null,2]
[7,null,null,null,"",null,null,"",null,null,null,"",null,null,null,3,null,null,3,null,null,null,2.5]
[8,null,null,null,"",null,null,"",null,null,null,"",null,null,null,3.5,null,null,3.5,null,null,null,3]
[9,null,null,null,"",null,null,"",null,null,null,"",null,null,null,"Ensemble articulé et rythmé",null,null,"Le gymnaste combine postures et déplacements",null,null,null,"Le jugement est pertinent"]
[10,null,null,null,"",null,null,"",null,null,null,"",null,null,null,4,null,null,4,null,null,null,3.5]
[11,null,null,null,"",null,null,"",null,null,null,"",null,null,null,4.5,null,null,4.5,null,null,null,4]
[12,null,null,null,"",null,null,"",null,null,null,"",null,null,null,5.5,null,null,5.5]
[13,null,null,null,"",null,null,"",null,null,null,"",null,null,null,6,null,null,6]
[14,null,null,null,"",null,null,"",null,null,null,"",null,null,null,"Composition dynamique",null,null,"Le gymnaste investit l'espace"]
[15,null,null,null,"",null,null,"",null,null,null,"",null,null,null,6.5,null,null,6.5]
[16,null,null,null,"",null,null,"",null,null,null,"",null,null,null,7,null,null,7]
[17,null,null,null,"",null,null,"",null,null,null,"",null,null,null,7.5,null,null,7.5]
[18,null,null,null,"",null,null,"",null,null,null,"",null,null,null,8,null,null,8]
[19,null,null,null,"",null,null,"",null,null,null,""]
[20,null,null,null,"",null,null,"",null,null,null,""]
[21,null,null,null,"",null,null,"",null,null,null,""]
[22,null,null,null,"",null,null,"",null,null,null,""]
[23,null,null,null,"",null,null,"",null,null,null,""]
[24,null,null,null,"",null,null,"",null,null,null,""]
[25,null,null,null,"",null,null,"",null,null,null,""]
[26,null,null,null,"",null,null,"",null,null,null,""]
[27,null,null,null,"",null,null,"",null,null,null,""]
[28,null,null,null,"",null,null,"",null,null,null,""]
[29,null,null,null,"",null,null,"",null,null,null,""]
[30,null,null,null,"",null,null,"",null,null,null,""]
[null,null,null,"Moyenne générale",{"$f":"IF(E6=\"\",\"\",AVERAGE($E$6:$E$35))","v":""}]
[null,null,null,"Moyenne filles",{"$f":"IF(E6=\"\",\"\",IF(C6=\"\",\"\",AVERAGEIF($C$6:$C$35,\"F\",$E$6:$E$35)))","v":""}]
[null,null,null,"Moyenne garçons",{"$f":"IF(E7=\"\",\"\",IF(C6=\"\",\"\",AVERAGEIF($C$6:$C$35,\"M\",$E$6:$E$35)))","v":""}]

{"sheet":"Référentiel","index":1,"n_rows":0,"n_cols":0,"rows_kept":0,"cut":false,"hidden":false,"merged":[]}